fUST/lending_fUST_20240421
["ID","MTS","AMOUNT","RATE_DAILY","PERIOD"]
[323124636,1713689440391,-500.0,0.00021917,2]
[323124637,1713689440400,-500.0,0.00021917,2]
[323124638,1713689440409,-509.53852118,0.00021917,2]
[323124639,1713689440418,-529.34504125,0.00021917,2]
[323124640,1713689440427,-500.0,0.00021917,2]
[323124641,1713689440436,-896.01,0.00021917,2]
[323124642,1713689440445,-877.33,0.00021917,2]
[323124643,1713689440454,-500.0,0.00021917,2]
[323124644,1713689440463,-500.0,0.00021917,2]
[323124645,1713689440474,-500.0,0.00021917,2]
[323124646,1713689440484,-500.0,0.00021917,2]
[323124647,1713689440494,-463.76403182,0.00021917,2]
[323124648,1713689440504,-500.0,0.00021917,2]
[323124649,1713689440514,-500.0,0.00021917,2]
[323124650,1713689440524,-500.0,0.00021917,2]
[323124651,1713689440534,-500.0,0.00021917,2]
[323124652,1713689440543,-500.0,0.00021917,2]
[323124653,1713689440553,-500.0,0.00021917,2]
[323124654,1713689440563,-500.0,0.00021917,2]
[323124655,1713689440573,-500.0,0.00021917,2]
[323124656,1713689440582,-500.0,0.00021917,2]
[323124657,1713689440591,-500.0,0.00021917,2]
[323124658,1713689440600,-526.03,0.00021917,2]
[323124659,1713689440611,-500.0,0.00021917,2]
[323124660,1713689440620,-500.0,0.00021917,2]
[323124661,1713689440629,-500.0,0.00021917,2]
[323124662,1713689440638,-500.0,0.00021917,2]
[323124663,1713689440648,-500.0,0.00021917,2]
[323124664,1713689440657,-500.0,0.00021917,2]
[323124665,1713689440666,-500.0,0.00021917,2]
[323124666,1713689440675,-276.94721428,0.00021917,2]
[323124667,1713689440684,-500.0,0.00021917,2]
[323124668,1713689440693,-500.0,0.00021917,2]
[323124669,1713689440702,-500.0,0.00021917,2]
[323124670,1713689440711,-500.0,0.00021917,2]
[323124671,1713689440721,-1067.9,0.00021917,2]
[323124672,1713689440730,-500.0,0.00021917,2]
[323124673,1713689440740,-500.0,0.00021917,2]
[323124674,1713689440749,-738.39,0.00021917,2]
[323124675,1713689440758,-514.06974423,0.00021917,2]
[323124676,1713689440767,-151.470561,0.00021917,2]
[323124677,1713689440777,-151.470561,0.00021917,2]
[323124678,1713689440786,-151.470561,0.00021917,2]
[323124679,1713689440795,-151.470561,0.00021917,2]
[323124680,1713689440805,-513.72407907,0.00021917,2]
[323124681,1713689440814,-151.470561,0.00021917,2]
[323124682,1713689440823,-611.32207376,0.00021917,2]
[323124683,1713689440832,-151.470561,0.00021917,2]
[323124684,1713689440841,-151.470561,0.00021917,2]
[323124685,1713689440850,-151.470561,0.00021917,2]
[323124686,1713689440861,-500.0,0.00021917,2]
[323124687,1713689440871,-500.0,0.00021917,2]
[323124688,1713689440996,-500.0,0.00021917,2]
[323124689,1713689441006,-500.0,0.00021917,2]
[323124690,1713689441016,-500.0,0.00021917,2]
[323124691,1713689441025,-500.0,0.00021917,2]
[323124692,1713689441034,-500.0,0.00021917,2]
[323124693,1713689441043,-500.0,0.00021917,2]
[323124694,1713689441052,-523.14733416,0.00021917,2]
[323124695,1713689441060,-500.0,0.00021917,2]
[323124696,1713689441070,-651.52,0.00021917,2]
[323124697,1713689441079,-500.0,0.00021917,2]
[323124698,1713689441088,-500.0,0.00021917,2]
[323124699,1713689441097,-500.0,0.00021917,2]
[323124700,1713689441108,-500.0,0.00021917,2]
[323124701,1713689441118,-500.0,0.00021917,2]
[323124702,1713689441127,-500.0,0.00021917,2]
[323124703,1713689441136,-607.86677738,0.00021917,2]
[323124704,1713689441145,-500.0,0.00021917,2]
[323124705,1713689441154,-500.0,0.00021917,2]
[323124706,1713689441163,-500.0,0.00021917,2]
[323124707,1713689441172,-502.49703619,0.00021917,2]
[323124708,1713689441181,-173.042897,0.00021917,2]
[323124709,1713689441190,-500.0,0.00021917,2]
[323124710,1713689441198,-500.0,0.00021917,2]
[323124711,1713689441207,-500.0,0.00021917,2]
[323124712,1713689441216,-506.03749183,0.00021917,2]
[323124713,1713689441225,-500.0,0.00021917,2]
[323124714,1713689441234,-82.50482234,0.00021917,2]
[323124715,1713689441550,-69.71520528,0.00021917,2]
[323124716,1713689441560,-500.0,0.00021917,2]
[323124717,1713689441570,-500.0,0.00021917,2]
[323124718,1713689441580,-500.0,0.00021917,2]
[323124719,1713689441590,-500.0,0.00021917,2]
[323124720,1713689441600,-500.0,0.00021917,2]
[323124721,1713689441610,-691.94,0.00021917,2]
[323124722,1713689441619,-500.0,0.00021917,2]
[323124723,1713689441628,-500.0,0.00021917,2]
[323124724,1713689441637,-500.0,0.00021917,2]
[323124725,1713689441649,-200.87227786,0.00021917,2]
[323124726,1713689441659,-500.0,0.00021917,2]
[323124727,1713689441670,-500.0,0.00021917,2]
[323124728,1713689441679,-503.99016589,0.00021917,2]
[323124729,1713689441688,-500.0,0.00021917,2]
[323124730,1713689441697,-503.76164233,0.00021917,2]
[323124731,1713689441705,-500.0,0.00021917,2]
[323124732,1713689441714,-500.0,0.00021917,2]
[323124733,1713689441725,-500.0,0.00021917,2]
[323124734,1713689441734,-500.0,0.00021917,2]
[323124735,1713689441744,-500.0,0.00021917,2]
[323124736,1713689441754,-500.0,0.00021917,2]
[323124737,1713689441765,-500.0,0.00021917,2]
[323124738,1713689441777,-500.0,0.00021917,2]
[323124739,1713689441787,-500.0,0.00021917,2]
[323124740,1713689441797,-500.0,0.00021917,2]
[323124741,1713689441807,-500.0,0.00021917,2]
[323124742,1713689441816,-504.34163219,0.00021917,2]
[323124743,1713689441826,-1967.12,0.00021917,2]
[323124744,1713689441835,-504.22410649,0.00021917,2]
[323124745,1713689441845,-500.0,0.00021917,2]
[323124746,1713689441854,-500.0,0.00021917,2]
[323124747,1713689441864,-799.72,0.00021917,2]
[323124748,1713689441874,-500.0,0.00021917,2]
[323124749,1713689441884,-1104.81,0.00021917,2]
[323124750,1713689441893,-1374.11,0.00021917,2]
[323124751,1713689441903,-628.01,0.00021917,2]
[323124752,1713689441912,-500.0,0.00021917,2]
[323124753,1713689441925,-500.0,0.00021917,2]
[323124754,1713689441934,-500.0,0.00021917,2]
[323124755,1713689441943,-500.0,0.00021917,2]
[323124756,1713689441953,-500.0,0.00021917,2]
[323124757,1713689441962,-500.0,0.00021917,2]
[323124758,1713689441974,-500.0,0.00021917,2]
[323124759,1713689441984,-500.0,0.00021917,2]
[323124760,1713689441993,-1132.36,0.00021917,2]
[323124761,1713689442004,-502.94250085,0.00021917,2]
[323124762,1713689442013,-500.0,0.00021917,2]
[323124763,1713689442023,-500.0,0.00021917,2]
[323124764,1713689442034,-250.2823541,0.00021917,2]
[323124765,1713689442046,-500.0,0.00021917,2]
[323124766,1713689442056,-500.0,0.00021917,2]
[323124767,1713689442066,-500.0,0.00021917,2]
[323124768,1713689442075,-500.53775948,0.00021917,2]
[323124769,1713689442085,-671.89,0.00021917,2]
[323124770,1713689442095,-500.0,0.00021917,2]
[323124771,1713689442106,-664.34,0.00021917,2]
[323124772,1713689442115,-500.0,0.00021917,2]
[323124773,1713689442123,-500.0,0.00021917,2]
[323124774,1713689442133,-500.0,0.00021917,2]
[323124776,1713689442142,-500.0,0.00021917,2]
[323124778,1713689442151,-500.0,0.00021917,2]
[323124780,1713689442160,-1961.81,0.00021917,2]
[323124782,1713689442169,-500.0,0.00021917,2]
[323124783,1713689442178,-500.0,0.00021917,2]
[323124785,1713689442187,-500.0,0.00021917,2]
[323124788,1713689442196,-500.0,0.00021917,2]
[323124789,1713689442206,-500.0,0.00021917,2]
[323124790,1713689442215,-500.0,0.00021917,2]
[323124791,1713689442223,-500.0,0.00021917,2]
[323124792,1713689442233,-500.0,0.00021917,2]
[323124793,1713689442242,-500.0,0.00021917,2]
[323124794,1713689442252,-500.0,0.00021917,2]
[323124795,1713689442261,-500.0,0.00021917,2]
[323124796,1713689442270,-507.17171376,0.00021917,2]
[323124797,1713689442280,-501.68120795,0.00021917,2]
[323124798,1713689442288,-500.0,0.00021917,2]
[323124799,1713689442298,-500.0,0.00021917,2]
[323124800,1713689442307,-500.0,0.00021917,2]
[323124801,1713689442316,-500.0,0.00021917,2]
[323124803,1713689442325,-500.0,0.00021917,2]
[323124806,1713689442335,-500.0,0.00021917,2]
[323124809,1713689442344,-513.06151119,0.00021917,2]
[323124812,1713689442353,-504.32441262,0.00021917,2]
[323124815,1713689442362,-500.0,0.00021917,2]
[323124818,1713689442371,-500.0,0.00021917,2]
[323124820,1713689442381,-500.0,0.00021917,2]
[323124823,1713689442390,-515.38583008,0.00021917,2]
[323124825,1713689442399,-694.23,0.00021917,2]
[323124826,1713689442409,-764.7,0.00021917,2]
[323124828,1713689442418,-500.0,0.00021917,2]
[323124830,1713689442427,-439.43905108,0.00021917,2]
[323124832,1713689442436,-1823.43,0.00021917,2]
[323124834,1713689442445,-500.0,0.00021917,2]
[323124837,1713689442455,-500.0,0.00021917,2]
[323124839,1713689442464,-500.0,0.00021917,2]
[323124840,1713689442474,-500.0,0.00021917,2]
[323124841,1713689442484,-509.58949801,0.00021917,2]
[323124842,1713689442495,-500.0,0.00021917,2]
[323124843,1713689442504,-500.0,0.00021917,2]
[323124844,1713689442514,-507.19889557,0.00021917,2]
[323124845,1713689442524,-500.0,0.00021917,2]
[323124846,1713689442533,-500.0,0.00021917,2]
[323124847,1713689442542,-222.724219,0.00021917,2]
[323124848,1713689442551,-500.0,0.00021917,2]
[323124849,1713689442561,-500.0,0.00021917,2]
[323124850,1713689442571,-500.0,0.00021917,2]
[323124851,1713689442580,-500.72460198,0.00021917,2]
[323124852,1713689442589,-500.0,0.00021917,2]
[323124853,1713689442599,-500.0,0.00021917,2]
[323124854,1713689442609,-500.0,0.00021917,2]
[323124855,1713689442618,-785.34,0.00021917,2]
[323124856,1713689442628,-500.0,0.00021917,2]
[323124857,1713689442638,-736.72,0.00021917,2]
[323124858,1713689442647,-500.0,0.00021917,2]
[323124859,1713689442655,-500.0,0.00021917,2]
[323124860,1713689442665,-500.0,0.00021917,2]
[323124861,1713689442675,-779.71,0.00021917,2]
[323124862,1713689442685,-500.0,0.00021917,2]
[323124863,1713689442695,-500.0,0.00021917,2]
[323124864,1713689442706,-500.0,0.00021917,2]
[323124865,1713689442715,-500.0,0.00021917,2]
[323124867,1713689442725,-500.0,0.00021917,2]
[323124868,1713689442734,-500.0,0.00021917,2]
[323124869,1713689442743,-500.0,0.00021917,2]
[323124870,1713689442752,-500.0,0.00021917,2]
[323124872,1713689442761,-500.0,0.00021917,2]
[323124874,1713689442770,-513.53,0.00021917,2]
[323124875,1713689442780,-445.56,0.00021917,2]
[323124877,1713689442789,-6413.11,0.00021917,2]
[323124879,1713689442800,-748.51,0.00021917,2]
[323124881,1713689442809,-500.00000046,0.00021917,2]
[323124883,1713689442819,-500.0,0.00021917,2]
[323124885,1713689442830,-500.0,0.00021917,2]
[323124887,1713689442841,-500.0,0.00021917,2]
[323124889,1713689442850,-500.0,0.00021917,2]
[323124891,1713689442862,-1643.89,0.00021917,2]
[323124893,1713689442871,-392.66360085,0.00021917,2]
[323124895,1713689442880,-505.4584757,0.00021917,2]
[323124897,1713689442888,-500.0,0.00021917,2]
[323124899,1713689442898,-1014.13242916,0.00021917,2]
[323124901,1713689442907,-500.0,0.00021917,2]
[323124903,1713689442916,-4651.14,0.00021917,2]
[323124905,1713689442925,-500.0,0.00021917,2]
[323124907,1713689442934,-1010.63,0.00021917,2]
[323124909,1713689442943,-500.0,0.00021917,2]
[323124911,1713689442952,-500.0,0.00021917,2]
[323124912,1713689442962,-500.0,0.00021917,2]
[323124914,1713689442971,-791.01,0.00021917,2]
[323124916,1713689442980,-522.87,0.00021917,2]
[323124918,1713689442990,-1236.76,0.00021917,2]
[323124920,1713689442998,-500.0,0.00021917,2]
[323124922,1713689443008,-500.0,0.00021917,2]
[323124924,1713689443017,-500.0,0.00021917,2]
[323124926,1713689443026,-500.0,0.00021917,2]
[323124928,1713689443034,-500.0,0.00021917,2]
[323124930,1713689443045,-500.0,0.00021917,2]
[323124932,1713689443054,-950.56,0.00021917,2]
[323124934,1713689443063,-626.80285602,0.00021917,2]
[323124936,1713689443072,-727.24,0.00021917,2]
[323124938,1713689443081,-508.80626197,0.00021917,2]
[323124940,1713689443090,-500.0,0.00021917,2]
[323124942,1713689443099,-503.2572355,0.00021917,2]
[323124944,1713689443110,-500.0,0.00021917,2]
[323124946,1713689443118,-500.0,0.00021917,2]
[323124948,1713689443127,-495.74954784,0.00021917,2]
[323124950,1713689443136,-500.0,0.00021917,2]
[323124952,1713689443147,-500.0,0.00021917,2]
[323124954,1713689443156,-500.0,0.00021917,2]
[323124956,1713689443165,-500.0,0.00021917,2]
[323124958,1713689443174,-500.0,0.00021917,2]
[323124960,1713689443183,-500.0,0.00021917,2]
[323124962,1713689443193,-500.0,0.00021917,2]
[323124964,1713689443201,-588.97,0.00021917,2]
[323124966,1713689443211,-503.27970568,0.00021917,2]
[323124968,1713689443219,-208.55750794,0.00021917,2]
[323124988,1713689443846,-1232.52249206,0.00021917,2]
[323124989,1713689443855,-1543.97750794,0.00021917,2]
[323125006,1713689446015,-2661.10249206,0.00021917,2]
[323125007,1713689446024,-398.72465794,0.00021917,2]
[323125009,1713689502871,171.414693,0.00020807,2]
[323125018,1713689535335,150.0,0.00019817,2]
[323125019,1713689553952,24900.0,0.00020717,2]
[323125020,1713689663404,178.203014,0.00020376,2]
[323125022,1713689836522,150.0,0.00019817,2]
[323125023,1713689945305,150.5,0.000241,35]
[323125024,1713689945499,156.0,0.000241,35]
[323125025,1713689947190,195.22,0.0002409,35]
[323125026,1713689947484,156.0,0.0002409,35]
[323125027,1713689948779,156.0,0.0002408,35]
[323125028,1713689969205,171.414693,0.00020522,2]
[323125029,1713690004796,988.37368075,0.00020913,2]
[323125030,1713690014468,2532.31337361,0.00020912,2]
[323125031,1713690022533,539.63707301,0.00020911,2]
[323125032,1713690031477,1665.89856818,0.0002091,2]
[323125033,1713690040660,1665.89856818,0.0002091,2]
[323125034,1713690049001,1665.89856818,0.0002091,2]
[323125035,1713690057276,474.60169326,0.00020908,2]
[323125036,1713690067179,358.92683264,0.00020907,2]
[323125037,1713690075189,1442.22865105,0.00020906,2]
[323125038,1713690084083,694.48222786,0.00020905,2]
[323125039,1713690092084,1665.89856818,0.00020904,2]
[323125040,1713690100483,1665.89856818,0.00020904,2]
[323125041,1713690108545,1665.89856818,0.00020904,2]
[323125042,1713690116842,629.44684811,0.00020903,2]
[323125043,1713690127133,154.84515485,0.00020902,2]
[323125044,1713690135520,204.08167779,0.00020901,2]
[323125045,1713690143534,539.63707301,0.000209,2]
[323125046,1713690152350,1311.22668928,0.00020899,2]
[323125047,1713690160429,1311.22668928,0.00020899,2]
[323125048,1713690168866,474.60169326,0.00020898,2]
[323125049,1713690176888,154.84515485,0.00020897,2]
[323125050,1713690179207,10778.767385,0.00020424,2]
[323125051,1713690184902,154.84515485,0.00020896,2]
[323125052,1713690192994,204.08167779,0.00020895,2]
[323125053,1713690201850,1665.89856818,0.00020894,2]
[323125054,1713690210443,539.63707301,0.00020893,2]
[323125055,1713690219325,539.63707301,0.00020893,2]
[323125056,1713690227312,474.60169326,0.00020892,2]
[323125057,1713690235640,154.84515485,0.00020891,2]
[323125058,1713690244252,154.84515485,0.0002089,2]
[323125059,1713690252554,1244.92987741,0.0002089,2]
[323125060,1713690258121,891.18052702,0.00021,2]
[323125061,1713690261364,713.59871154,0.00020889,2]
[323125062,1713690269811,1850.86376229,0.00020888,2]
[323125063,1713690277816,1850.86376229,0.00020888,2]
[323125064,1713690286225,474.60169326,0.00020887,2]
[323125065,1713690294367,474.60169326,0.00020887,2]
[323125066,1713690303262,1399.77503226,0.00020886,2]
[323125067,1713690311898,1597.0738059,0.00020885,2]
[323125068,1713690320334,354.6718789,0.00020884,2]
[323125069,1713690328447,1665.89856818,0.00020884,2]
[323125070,1713690337314,1665.89856818,0.00020884,2]
[323125071,1713690345645,1014.23876627,0.00020883,2]
[323125072,1713690353899,1014.23876627,0.00020883,2]
[323125073,1713690363326,154.84515485,0.00020882,2]
[323125074,1713690372350,1294.16640035,0.00020881,2]
[323125075,1713690380446,1820.74372303,0.0002088,2]
[323125076,1713690389279,3262.97237408,0.0002088,2]
[323125077,1713690397312,474.60169326,0.00020879,2]
[323125078,1713690405601,539.63707301,0.00020878,2]
[323125079,1713690414218,154.84515485,0.00020877,2]
[323125080,1713690422556,154.84515485,0.00020877,2]
[323125081,1713690430744,358.92683264,0.00020876,2]
[323125082,1713690439103,2755.98329074,0.00020875,2]
[323125083,1713690447190,1597.0738059,0.00020874,2]
[323125084,1713690455424,2071.67549916,0.00020874,2]
[323125085,1713690463450,154.84515485,0.00020873,2]
[323125086,1713690471775,694.48222786,0.00020873,2]
[323125087,1713690479843,154.84515485,0.00020872,2]
[323125088,1713690488295,309.6903097,0.00020872,2]
[323125091,1713690496314,1311.22668928,0.00020829,2]
[323125092,1713690504712,984.11872701,0.00020828,2]
[323125093,1713690513830,1442.22865105,0.00020827,2]
[323125097,1713690523201,1442.22865105,0.00020827,2]
[323125098,1713690531387,154.84515485,0.00020825,2]
[323125099,1713690540182,1244.92987741,0.00020825,2]
[323125103,1713690548783,309.6903097,0.00020824,2]
[323125104,1713690557136,354.6718789,0.00020823,2]
[323125105,1713690565298,929.44684811,0.00020822,2]
[323125109,1713690574624,929.44684811,0.00020822,2]
[323125110,1713690582840,539.63707301,0.0002082,2]
[323125111,1713690591137,827.74327691,0.0002082,2]
[323125115,1713690599564,154.84515485,0.00020818,2]
[323125116,1713690607727,154.84515485,0.00020817,2]
[323125117,1713690616129,609.6903097,0.00020817,2]
[323125118,1713690624926,354.6718789,0.00020816,2]
[323125119,1713690628881,411.41425187,0.00020926,2]
[323125156,1713690633795,1442.22865105,0.00020815,2]
[323125163,1713690637488,24900.0,0.00020428,2]
[323125208,1713690638006,-1442.22865105,0.00021025,2]
[323125210,1713690638015,-288.1062039,0.00021025,2]
[323125212,1713690638024,-354.6718789,0.00021026,2]
[323125213,1713690638033,-474.60169326,0.00021026,2]
[323125215,1713690638042,-154.84515485,0.00021027,2]
[323125217,1713690638052,-300.0,0.00021027,2]
[323125219,1713690638061,-154.84515485,0.00021027,2]
[323125221,1713690638070,-154.84515485,0.00021028,2]
[323125222,1713690638079,-1311.22668928,0.00021028,2]
[323125223,1713690638088,-154.84515485,0.00021029,2]
[323125225,1713690638097,-154.84515485,0.00021029,2]
[323125226,1713690638106,-539.63707301,0.0002103,2]
[323125228,1713690638117,-288.1062039,0.0002103,2]
[323125230,1713690638125,-300.0,0.00021031,2]
[323125232,1713690638134,-300.0,0.00021031,2]
[323125234,1713690638143,-1122.37593342,0.00021594,2]
[323125236,1713690638152,-178.37206691,0.000216,2]
[323125237,1713690638162,-1122.37593342,0.0002165,2]
[323125239,1713690638171,-774.4527204,0.00021674,2]
[323125240,1713690638180,-156.88484608,0.00021691,2]
[323125241,1713690638189,-304.06186205,0.00021692,2]
[323125242,1713690638198,-155.08128342,0.00021693,2]
[323125243,1713690638207,-1201.28235502,0.00021693,2]
[323125244,1713690638217,-156.29704415,0.00021693,2]
[323125245,1713690638226,-301.09888654,0.00021693,2]
[323125246,1713690638235,-72533.62668599,0.00021693,2]
[323125247,1713690638244,-200.0,0.00021694,2]
[323125248,1713690638254,-8312.50726515,0.00021694,2]
[323125249,1713690638263,-155.11060091,0.00021695,2]
[323125250,1713690638271,-468.90340767,0.00021695,2]
[323125251,1713690638281,-154.84793416,0.00021695,2]
[323125252,1713690638290,-385.51631922,0.00021695,2]
[323125253,1713690638299,-376.89055884,0.00021695,2]
[323125254,1713690638308,-155.14279685,0.00021696,2]
[323125255,1713690638317,-277.10572932,0.00021696,2]
[323125256,1713690638326,-439.01730286,0.00021696,2]
[323125257,1713690638335,-808.01963008,0.00021696,2]
[323125258,1713690638344,-155.26693109,0.00021696,2]
[323125259,1713690638353,-1120.31357752,0.00021696,2]
[323125260,1713690638364,-154.86062544,0.00021696,2]
[323125261,1713690638373,-1510.38111071,0.00021696,2]
[323125262,1713690638381,-957.51591942,0.00021696,2]
[323125263,1713690638391,-154.99260465,0.00021696,2]
[323125264,1713690638400,-154.95429644,0.00021696,2]
[323125265,1713690638409,-189.66405816,0.00021696,2]
[323125266,1713690638418,-203.10667868,0.00021696,2]
[323125267,1713690638426,-442.30333925,0.00021696,2]
[323125268,1713690638435,-155.2175547,0.00021696,2]
[323125269,1713690638444,-211.58690661,0.00021696,2]
[323125270,1713690638454,-724.67219348,0.00021696,2]
[323125271,1713690638463,-1122.37593342,0.00021706,2]
[323125272,1713690638472,-1122.37593342,0.00021761,2]
[323125273,1713690638481,-159.07223452,0.0002178,2]
[323125274,1713690638491,-209.96188542,0.00021816,2]
[323125275,1713690638501,-643.56467818,0.00021816,2]
[323125276,1713690638510,-500.0,0.00021816,2]
[323125277,1713690638519,-184.72293937,0.00021816,2]
[323125278,1713690638528,-39201.80932475,0.00021817,2]
[323125279,1713690638538,-1122.37593342,0.00021817,2]
[323125280,1713690638547,-643.41065564,0.00021834,2]
[323125281,1713690638556,-153.0,0.000219,2]
[323125282,1713690638565,-153.0,0.000219,2]
[323125283,1713690638574,-153.0,0.000219,2]
[323125284,1713690638583,-153.0,0.000219,2]
[323125285,1713690638593,-306.0,0.000219,2]
[323125286,1713690638602,-153.0,0.000219,2]
[323125287,1713690638612,-8934.76792869,0.00021909,2]
[323125288,1713690638621,-59112.64828846,0.00021915,2]
[323125289,1713690638630,-154.9927059,0.00021916,2]
[323125290,1713690638640,-1404.97231966,0.00021916,2]
[323125291,1713690638649,-500.0,0.00021917,2]
[323125292,1713690638658,-155.40504454,0.00021917,2]
[323125293,1713690638667,-155.09226132,0.00021917,2]
[323125294,1713690638677,-500.0,0.00021917,2]
[323125295,1713690638686,-500.0,0.00021917,2]
[323125296,1713690638696,-310.36254952,0.00021917,2]
[323125297,1713690638705,-502.45406462,0.00021917,2]
[323125298,1713690638715,-500.0,0.00021917,2]
[323125299,1713690638725,-500.0,0.00021917,2]
[323125300,1713690638734,-506.03468195,0.00021917,2]
[323125301,1713690638744,-704.32,0.00021917,2]
[323125302,1713690638753,-500.0,0.00021917,2]
[323125303,1713690638762,-541.17,0.00021917,2]
[323125304,1713690638772,-500.0,0.00021917,2]
[323125305,1713690638781,-500.0,0.00021917,2]
[323125306,1713690638790,-500.0,0.00021917,2]
[323125307,1713690638799,-500.0,0.00021917,2]
[323125308,1713690638809,-500.0,0.00021917,2]
[323125309,1713690638818,-500.0,0.00021917,2]
[323125310,1713690638827,-500.0,0.00021917,2]
[323125311,1713690638836,-500.0,0.00021917,2]
[323125312,1713690638846,-500.0,0.00021917,2]
[323125313,1713690638855,-500.0,0.00021917,2]
[323125314,1713690638869,-480.54300946,0.00021917,2]
[323125315,1713690638878,-502.76922335,0.00021917,2]
[323125316,1713690638888,-503.54699233,0.00021917,2]
[323125317,1713690638897,-500.0,0.00021917,2]
[323125318,1713690638907,-500.0,0.00021917,2]
[323125319,1713690638917,-500.0,0.00021917,2]
[323125320,1713690638926,-499.09298378,0.00021917,2]
[323125321,1713690638937,-500.0,0.00021917,2]
[323125322,1713690638946,-500.0,0.00021917,2]
[323125323,1713690638955,-500.0,0.00021917,2]
[323125324,1713690638965,-434.94487351,0.00021917,2]
[323125325,1713690638974,-500.0,0.00021917,2]
[323125326,1713690638983,-500.0,0.00021917,2]
[323125327,1713690638993,-500.0,0.00021917,2]
[323125328,1713690639003,-790.55,0.00021917,2]
[323125329,1713690639012,-500.0,0.00021917,2]
[323125330,1713690639023,-500.0,0.00021917,2]
[323125331,1713690639032,-500.0,0.00021917,2]
[323125332,1713690639042,-500.0,0.00021917,2]
[323125333,1713690639052,-500.0,0.00021917,2]
[323125334,1713690639062,-500.0,0.00021917,2]
[323125335,1713690639072,-500.0,0.00021917,2]
[323125336,1713690639081,-500.0,0.00021917,2]
[323125337,1713690639091,-500.0,0.00021917,2]
[323125338,1713690639100,-541.60503942,0.00021917,2]
[323125339,1713690639109,-504.9291087,0.00021917,2]
[323125340,1713690639120,-375.23419875,0.00021917,2]
[323125341,1713690639129,-500.0,0.00021917,2]
[323125342,1713690639138,-500.0,0.00021917,2]
[323125343,1713690639147,-500.0,0.00021917,2]
[323125344,1713690639156,-500.0,0.00021917,2]
[323125345,1713690639165,-500.0,0.00021917,2]
[323125346,1713690639174,-507.06788222,0.00021917,2]
[323125347,1713690639183,-504.8923807,0.00021917,2]
[323125348,1713690639192,-500.0,0.00021917,2]
[323125349,1713690639201,-500.0,0.00021917,2]
[323125350,1713690639211,-500.0,0.00021917,2]
[323125351,1713690639220,-500.0,0.00021917,2]
[323125352,1713690639231,-500.0,0.00021917,2]
[323125353,1713690639240,-500.0,0.00021917,2]
[323125354,1713690639250,-500.0,0.00021917,2]
[323125355,1713690639260,-500.0,0.00021917,2]
[323125356,1713690639270,-877.33,0.00021917,2]
[323125357,1713690639279,-500.0,0.00021917,2]
[323125358,1713690639289,-500.0,0.00021917,2]
[323125359,1713690639298,-500.0,0.00021917,2]
[323125360,1713690639307,-500.0,0.00021917,2]
[323125361,1713690639316,-500.0,0.00021917,2]
[323125362,1713690639325,-500.0,0.00021917,2]
[323125363,1713690639335,-500.0,0.00021917,2]
[323125364,1713690639344,-500.0,0.00021917,2]
[323125365,1713690639354,-500.0,0.00021917,2]
[323125366,1713690639367,-529.34504125,0.00021917,2]
[323125367,1713690639378,-276.94721428,0.00021917,2]
[323125368,1713690639387,-500.0,0.00021917,2]
[323125369,1713690639397,-500.0,0.00021917,2]
[323125370,1713690639408,-500.0,0.00021917,2]
[323125371,1713690639418,-500.0,0.00021917,2]